Workbook

Sheet Instrucciones

Sheet Plantilla (hidden)
L5: Significancia total (si todo=1) | N5: 2.84
L6: sen45º | N6: 0.71
L7: Susceptibilidad | M7: 1
L8: Magnitud | M8: 1
L9: Consenso | M9: 1
L10: Prioridad sanitaria | M10: 1
L11: Cambios en situación basal | M11: 1
L12: Regulación | M12: 1
L13: Contexto Socio-politico | M13: 1
L14: Percepción | M14: 1
L16: A | M16: =1/2*$N$6*M7*M8 -> 0.355
L17: B | M17: 0.355
L18: C | M18: 0.355
L19: D | M19: 0.355
L20: E | M20: 0.355
L21: F | M21: 0.355
L22: G | M22: 0.355
L23: H | M23: =1/2*$N$6*M14*M7 -> 0.355
L24: Total | M24: =SUM(M16:M23) -> 2.84
L25: Área | M25: =ROUND(M24,2) -> 2.84
L26: S | M26: =M24/N5 -> 1

Sheet Impacto 1 (hidden)
L4: Significancia total (si todo=1) | N4: 2.84
L5: sen45º | N5: 0.71
L6: Susceptibilidad | M6: 0.09
L7: Magnitud | M7: 1
L8: Consenso | M8: 1
L9: Prioridad sanitaria | M9: 0
L10: Cambios en situación basal | M10: 0.66
L11: Regulación | M11: 0.5
L12: Contexto Socio-politico | M12: 0
L13: Percepción | M13: 0.66
L15: A | M15: =1/2*$N$5*M6*M7 -> 0.03195
L16: B | M16: 0.355
L17: C | M17: 0
L18: D | M18: 0
L19: E | M19: 0.11715
L20: F | M20: 0
L21: G | M21: 0
L22: H | M22: =1/2*$N$5*M13*M6 -> 0.021087
L23: Total | M23: =SUM(M15:M22) -> 0.525187
L24: Área | M24: =ROUND(M23,2) -> 0.53
L25: S | M25: =M23/N4 -> 0.184925

Sheet Impacto 2 (hidden)
L3: Significancia total (si todo=1) | N3: 2.84
L4: sen45º | N4: 0.71
L5: Susceptibilidad | M5: 0
L6: Magnitud | M6: 0.33
L7: Consenso | M7: 0.66
L8: Prioridad sanitaria | M8: 0.66
L9: Cambios en situación basal | M9: 0
L10: Regulación | M10: 0
L11: Contexto Socio-politico | M11: 0.5
L12: Percepción | M12: 0.66
L14: A | M14: =1/2*$N$4*M5*M6 -> 0
L15: B | M15: 0.077319
L16: C | M16: 0.154638
L17: D | M17: 0
L18: E | M18: 0
L19: F | M19: 0
L20: G | M20: 0.11715
L21: H | M21: =1/2*$N$4*M12*M5 -> 0
L22: Total | M22: =SUM(M14:M21) -> 0.349107
L23: Área | M23: =ROUND(M22,2) -> 0.35
L24: S | M24: =M22/N3 -> 0.122925

Sheet Impacto 3 (hidden)
L3: Significancia total (si todo=1) | N3: 2.84
L4: sen45º | N4: 0.71
L5: Susceptibilidad | M5: 0.58
L6: Magnitud | M6: 0
L7: Consenso | M7: 1
L8: Prioridad sanitaria | M8: 0.66
L9: Cambios en situación basal | M9: 0
L10: Regulación | M10: 0.66
L11: Contexto Socio-politico | M11: 0.5
L12: Percepción | M12: 0.66
L14: A | M14: =1/2*$N$4*M5*M6 -> 0
L15: B | M15: 0
L16: C | M16: 0.2343
L17: D | M17: 0
L18: E | M18: 0
L19: F | M19: 0.11715
L20: G | M20: 0.11715
L21: H | M21: =1/2*$N$4*M12*M5 -> 0.135894
L22: Total | M22: =SUM(M14:M21) -> 0.604494
L23: Área | M23: =ROUND(M22,2) -> 0.6
L24: S | M24: =M22/N3 -> 0.21285

Sheet Impacto 4 (hidden)
L3: Significancia total (si todo=1) | N3: 2.84
L4: sen45º | N4: 0.71
L5: Susceptibilidad | M5: 0.67
L6: Magnitud | M6: 1
L7: Consenso | M7: 1
L8: Prioridad sanitaria | M8: 1
L9: Cambios en situación basal | M9: 0
L10: Regulación | M10: 0
L11: Contexto Socio-politico | M11: 1
L12: Percepción | M12: 1
L14: A | M14: =1/2*$N$4*M5*M6 -> 0.23785
L15: B | M15: 0.355
L16: C | M16: 0.355
L17: D | M17: 0
L18: E | M18: 0
L19: F | M19: 0
L20: G | M20: 0.355
L21: H | M21: =1/2*$N$4*M12*M5 -> 0.23785
L22: Total | M22: =SUM(M14:M21) -> 1.5407
L23: Área | M23: =ROUND(M22,2) -> 1.54
L24: S | M24: =M22/N3 -> 0.5425

Sheet Impacto 5 (hidden)
L3: Significancia total (si todo=1) | N3: 2.84
L4: sen45º | N4: 0.71
L5: Susceptibilidad | M5: 0.29
L6: Magnitud | M6: 0.33
L7: Consenso | M7: 0.66
L8: Prioridad sanitaria | M8: 0.66
L9: Cambios en situación basal | M9: 0
L10: Regulación | M10: 0
L11: Contexto Socio-politico | M11: 0.5
L12: Percepción | M12: 0.33
L14: A | M14: =1/2*$N$4*M5*M6 -> 0.0339735
L15: B | M15: 0.077319
L16: C | M16: 0.154638
L17: D | M17: 0
L18: E | M18: 0
L19: F | M19: 0
L20: G | M20: 0.058575
L21: H | M21: =1/2*$N$4*M12*M5 -> 0.0339735
L22: Total | M22: =SUM(M14:M21) -> 0.358479
L23: Área | M23: =ROUND(M22,2) -> 0.36
L24: S | M24: =M22/N3 -> 0.126225

Sheet Impacto 6 (hidden)
L3: Significancia total (si todo=1) | N3: 2.84
L4: sen45º | N4: 0.71
L5: Susceptibilidad | M5: 0.67
L6: Magnitud | M6: 0.33
L7: Consenso | M7: 1
L8: Prioridad sanitaria | M8: 0.66
L9: Cambios en situación basal | M9: 0
L10: Regulación | M10: 0.66
L11: Contexto Socio-politico | M11: 0.5
L12: Percepción | M12: 0.33
L14: A | M14: =1/2*$N$4*M5*M6 -> 0.0784905
L15: B | M15: 0.11715
L16: C | M16: 0.2343
L17: D | M17: 0
L18: E | M18: 0
L19: F | M19: 0.11715
L20: G | M20: 0.058575
L21: H | M21: =1/2*$N$4*M12*M5 -> 0.0784905
L22: Total | M22: =SUM(M14:M21) -> 0.684156
L23: Área | M23: =ROUND(M22,2) -> 0.68
L24: S | M24: =M22/N3 -> 0.2409

Sheet Impacto 7 (hidden)
L3: Significancia total (si todo=1) | N3: 2.84
L4: sen45º | N4: 0.71
L5: Susceptibilidad | M5: 0.49
L6: Magnitud | M6: 0
L7: Consenso | M7: 0.66
L8: Prioridad sanitaria | M8: 0.33
L9: Cambios en situación basal | M9: 0
L10: Regulación | M10: 0
L11: Contexto Socio-politico | M11: 0.25
L12: Percepción | M12: 0.33
L14: A | M14: =1/2*$N$4*M5*M6 -> 0
L15: B | M15: 0
L16: C | M16: 0.077319
L17: D | M17: 0
L18: E | M18: 0
L19: F | M19: 0
L20: G | M20: 0.0292875
L21: H | M21: =1/2*$N$4*M12*M5 -> 0.0574035
L22: Total | M22: =SUM(M14:M21) -> 0.16401
L23: Área | M23: =ROUND(M22,2) -> 0.16
L24: S | M24: =M22/N3 -> 0.05775

Sheet Impacto 8 (hidden)
L3: Significancia total (si todo=1) | N3: 2.84
L4: sen45º | N4: 0.71
L5: Susceptibilidad | M5: 0.6
L6: Magnitud | M6: 0.66
L7: Consenso | M7: 1
L8: Prioridad sanitaria | M8: 1
L9: Cambios en situación basal | M9: 0.5
L10: Regulación | M10: 0.25
L11: Contexto Socio-politico | M11: 0.75
L12: Percepción | M12: 1
L14: A | M14: =1/2*$N$4*M5*M6 -> 0.14058
L15: B | M15: 0.2343
L16: C | M16: 0.355
L17: D | M17: 0.1775
L18: E | M18: 0.044375
L19: F | M19: 0.0665625
L20: G | M20: 0.26625
L21: H | M21: =1/2*$N$4*M12*M5 -> 0.213
L22: Total | M22: =SUM(M14:M21) -> 1.4975675
L23: Área | M23: =ROUND(M22,2) -> 1.5
L24: S | M24: =M22/N3 -> 0.5273125

Sheet Impacto 9 (hidden)
L3: Significancia total (si todo=1) | N3: 2.84
L4: sen45º | N4: 0.71
L5: Susceptibilidad | M5: 0.49
L6: Magnitud | M6: 0
L7: Consenso | M7: 1
L8: Prioridad sanitaria | M8: 0.33
L9: Cambios en situación basal | M9: 0
L10: Regulación | M10: 0.66
L11: Contexto Socio-politico | M11: 0.26
L12: Percepción | M12: 0.33
L14: A | M14: =1/2*$N$4*M5*M6 -> 0
L15: B | M15: 0
L16: C | M16: 0.11715
L17: D | M17: 0
L18: E | M18: 0
L19: F | M19: 0.060918
L20: G | M20: 0.030459
L21: H | M21: =1/2*$N$4*M12*M5 -> 0.0574035
L22: Total | M22: =SUM(M14:M21) -> 0.2659305
L23: Área | M23: =ROUND(M22,2) -> 0.27
L24: S | M24: =M22/N3 -> 0.0936375

Sheet Visión general (hidden)
